[Event "*** Titled Tuesday 3|2 Blitz"]
[Site "Chess.com"]
[Date "2015.11.03"]
[Round "9"]
[White "Dlugy"]
[Black "GrigorGrigorov"]
[Result "0-1"]
[WhiteElo "2563"]
[BlackElo "2444"]
[TimeControl "180+2"]
[EndTime "18:52:16 PST"]
[Termination "GrigorGrigorov won by resignation"]

1. d4 {[%clk 0:03:01.9]} 1... Nf6 {[%clk 0:03:00.7]} 2. Bf4 {[%clk 0:03:02.7]}
2... e6 {[%clk 0:03:01.5]} 3. e3 {[%clk 0:03:03.4]} 3... b6 {[%clk 0:03:02.7]}
4. Nf3 {[%clk 0:03:00.3]} 4... Bb7 {[%clk 0:03:03.7]} 5. Bd3 {[%clk 0:03:01.3]}
5... Be7 {[%clk 0:03:01.9]} 6. h3 {[%clk 0:03:02.4]} 6... O-O {[%clk 0:03:02.7]}
7. O-O {[%clk 0:03:04]} 7... c5 {[%clk 0:03:03.5]} 8. c3 {[%clk 0:03:05.2]} 8...
Nc6 {[%clk 0:03:04.7]} 9. Nbd2 {[%clk 0:03:06.7]} 9... d5 {[%clk 0:03:05.3]} 10.
Qb1 {[%clk 0:03:00.6]} 10... Bd6 {[%clk 0:03:02.6]} 11. Ne5 {[%clk 0:02:56]}
11... Ne7 {[%clk 0:03:00.8]} 12. b4 {[%clk 0:02:51.6]} 12... cxb4 {[%clk
0:02:58.1]} 13. cxb4 {[%clk 0:02:52.7]} 13... Rc8 {[%clk 0:02:58.3]} 14. Qb2
{[%clk 0:02:47.4]} 14... Ne4 {[%clk 0:02:55.6]} 15. Bh2 {[%clk 0:02:21.9]} 15...
f6 {[%clk 0:02:54]} 16. Nef3 {[%clk 0:02:22]} 16... Bxh2+ {[%clk 0:02:53]} 17.
Nxh2 {[%clk 0:02:23.2]} 17... Qd6 {[%clk 0:02:48.4]} 18. Nhf3 {[%clk 0:02:23.5]}
18... Rc7 {[%clk 0:02:48.3]} 19. Rfc1 {[%clk 0:02:24.4]} 19... Rfc8 {[%clk
0:02:48.3]} 20. a3 {[%clk 0:02:25.6]} 20... g5 {[%clk 0:02:13.3]} 21. Nh2 {[%clk
0:02:08]} 21... h5 {[%clk 0:02:06.9]} 22. Nhf1 {[%clk 0:02:08.1]} 22... h4
{[%clk 0:01:55]} 23. b5 {[%clk 0:02:02.3]} 23... Kg7 {[%clk 0:01:54.4]} 24. a4
{[%clk 0:01:57.7]} 24... Nc3 {[%clk 0:01:41.2]} 25. Kh1 {[%clk 0:01:48.7]} 25...
Nxa4 {[%clk 0:01:32]} 26. Rxc7 {[%clk 0:01:42.6]} 26... Nxb2 {[%clk 0:01:30]}
27. Rxb7 {[%clk 0:01:41.7]} 27... Nxd3 {[%clk 0:01:28.6]} 28. Raxa7 {[%clk
0:01:42.7]} 28... Re8 {[%clk 0:01:24]} 29. Kg1 {[%clk 0:01:41.9]} 29... Kf7
{[%clk 0:01:20.7]} 30. Ra6 {[%clk 0:01:43]} 30... Rb8 {[%clk 0:01:14.9]} 31.
Rba7 {[%clk 0:01:43.6]} 31... Rc8 {[%clk 0:00:59.8]} 32. Rb7 {[%clk 0:01:42.6]}
32... Rc2 {[%clk 0:00:57.9]} 33. Rbxb6 {[%clk 0:01:41.1]} 33... Qb4 {[%clk
0:00:52.7]} 34. Nf3 {[%clk 0:01:32.2]} 34... Rxf2 {[%clk 0:00:48.1]} 35. Rb7
{[%clk 0:01:28.9]} 35... Qb1 {[%clk 0:00:39.5]} 36. Nh2 {[%clk 0:01:28.7]} 36...
Qb2 {[%clk 0:00:30.7]} 37. Raa7 {[%clk 0:01:29.8]} 37... Rxg2+ {[%clk
0:00:30.6]} 38. Kh1 {[%clk 0:01:31.3]} 38... Qf2 {[%clk 0:00:23.2]} 39. Rxe7+
{[%clk 0:01:31.2]} 39... Kg6 {[%clk 0:00:24.5]} 40. Rg7+ {[%clk 0:01:28.7]}
40... Kf5 {[%clk 0:00:25.7]} 41. Rxg5+ {[%clk 0:01:29.9]} 41... Rxg5 {[%clk
0:00:25.4]} 42. e4+ {[%clk 0:01:29.4]} 42... Kxe4 {[%clk 0:00:24.6]} 0-1

[Event "*** Titled Tuesday 3|2 Blitz"]
[Site "Chess.com"]
[Date "2015.11.03"]
[Round "9"]
[White "spirals5"]
[Black "SerGo055"]
[Result "0-1"]
[WhiteElo "2212"]
[BlackElo "2398"]
[TimeControl "180+2"]
[EndTime "18:53:06 PST"]
[Termination "SerGo055 won by resignation"]

1. e4 {[%clk 0:03:01.9]} 1... d5 {[%clk 0:02:49]} 2. exd5 {[%clk 0:03:02.5]}
2... Qxd5 {[%clk 0:02:49.4]} 3. Nc3 {[%clk 0:03:03.5]} 3... Qd8 {[%clk
0:02:50.2]} 4. d4 {[%clk 0:03:02.9]} 4... Nf6 {[%clk 0:02:51.7]} 5. Bc4 {[%clk
0:03:03.5]} 5... Bg4 {[%clk 0:02:52.2]} 6. f3 {[%clk 0:03:03.9]} 6... Bf5 {[%clk
0:02:53.1]} 7. Be3 {[%clk 0:03:04.8]} 7... e6 {[%clk 0:02:54.1]} 8. Nge2 {[%clk
0:03:05]} 8... c6 {[%clk 0:02:55.2]} 9. O-O {[%clk 0:02:59.7]} 9... Bd6 {[%clk
0:02:55.3]} 10. Ng3 {[%clk 0:02:56.6]} 10... Bg6 {[%clk 0:02:55.7]} 11. Nce4
{[%clk 0:02:56.9]} 11... Be7 {[%clk 0:02:47.6]} 12. Nxf6+ {[%clk 0:02:55.9]}
12... Bxf6 {[%clk 0:02:48.7]} 13. c3 {[%clk 0:02:56.7]} 13... O-O {[%clk
0:02:47.5]} 14. Re1 {[%clk 0:02:56.2]} 14... Nd7 {[%clk 0:02:43.3]} 15. Ne4
{[%clk 0:02:51.1]} 15... Nb6 {[%clk 0:02:42.4]} 16. Nxf6+ {[%clk 0:02:51.7]}
16... Qxf6 {[%clk 0:02:42.9]} 17. Bb3 {[%clk 0:02:51.1]} 17... Rfd8 {[%clk
0:02:43.5]} 18. Qc1 {[%clk 0:02:46.4]} 18... h6 {[%clk 0:02:42.8]} 19. Bf4
{[%clk 0:02:38.4]} 19... Nd5 {[%clk 0:02:40.2]} 20. Bxd5 {[%clk 0:02:38.8]}
20... cxd5 {[%clk 0:02:40.3]} 21. Qe3 {[%clk 0:02:34.8]} 21... b5 {[%clk
0:02:40.2]} 22. a3 {[%clk 0:02:35.3]} 22... a5 {[%clk 0:02:40.3]} 23. Qe5 {[%clk
0:02:31.4]} 23... Qxe5 {[%clk 0:02:36]} 24. Bxe5 {[%clk 0:02:30.1]} 24... Rdc8
{[%clk 0:02:33.6]} 25. Bd6 {[%clk 0:02:29.7]} 25... Ra6 {[%clk 0:02:34.3]} 26.
Bc5 {[%clk 0:02:30.2]} 26... f6 {[%clk 0:02:31.7]} 27. b4 {[%clk 0:02:25]} 27...
axb4 {[%clk 0:02:27.5]} 28. axb4 {[%clk 0:02:24.6]} 28... Rca8 {[%clk
0:02:27.9]} 29. Rxa6 {[%clk 0:02:24]} 29... Rxa6 {[%clk 0:02:28.7]} 30. Re2
{[%clk 0:02:23.1]} 30... Kf7 {[%clk 0:02:29.3]} 31. Kf2 {[%clk 0:02:23.5]} 31...
Bd3 {[%clk 0:02:29]} 32. Rd2 {[%clk 0:02:22.8]} 32... Bc4 {[%clk 0:02:29.8]} 33.
g4 {[%clk 0:02:21.4]} 33... e5 {[%clk 0:02:24.1]} 34. dxe5 {[%clk 0:02:15.4]}
34... fxe5 {[%clk 0:02:25]} 35. Rd1 {[%clk 0:02:07.5]} 35... Ra2+ {[%clk
0:02:23.6]} 36. Kg3 {[%clk 0:02:08.1]} 36... Rc2 {[%clk 0:02:22.7]} 37. Re1
{[%clk 0:02:07.9]} 37... Kf6 {[%clk 0:02:10.2]} 38. Bd6 {[%clk 0:01:56.7]} 38...
e4 {[%clk 0:02:10.9]} 39. fxe4 {[%clk 0:01:57.2]} 39... Rxc3+ {[%clk 0:02:11.6]}
40. Kf2 {[%clk 0:01:52]} 40... d4 {[%clk 0:02:08.4]} 41. Bc5 {[%clk 0:01:40.1]}
41... Rc2+ {[%clk 0:02:08.3]} 42. Kg3 {[%clk 0:01:38.8]} 42... Ke5 {[%clk
0:02:09.2]} 43. Bf8 {[%clk 0:01:33.3]} 43... Rc3+ {[%clk 0:01:59.8]} 44. Kf2
{[%clk 0:01:31.7]} 44... Rc2+ {[%clk 0:02:00.4]} 45. Kg3 {[%clk 0:01:32.3]}
45... Kf6 {[%clk 0:01:53]} 46. e5+ {[%clk 0:01:30.3]} 46... Kf7 {[%clk 0:01:54]}
47. Bc5 {[%clk 0:01:30.2]} 47... d3 {[%clk 0:01:54]} 48. Kf3 {[%clk 0:01:12]}
48... Rxh2 {[%clk 0:01:46]} 49. Ke3 {[%clk 0:01:07.5]} 49... Ke6 {[%clk
0:01:41.9]} 50. Bd6 {[%clk 0:01:01.1]} 50... Rg2 {[%clk 0:01:25.1]} 51. Rd1
{[%clk 0:00:54.7]} 51... Rxg4 {[%clk 0:01:24.6]} 52. Rd2 {[%clk 0:00:53.8]}
52... h5 {[%clk 0:01:24]} 53. Kf3 {[%clk 0:00:53.8]} 53... g5 {[%clk 0:01:24.3]}
54. Rh2 {[%clk 0:00:40.1]} 54... Rf4+ {[%clk 0:01:25]} 55. Ke3 {[%clk
0:00:40.5]} 55... h4 {[%clk 0:01:26]} 56. Kd2 {[%clk 0:00:35.8]} 56... Re4
{[%clk 0:01:23.7]} 57. Bc5 {[%clk 0:00:29.8]} 57... Re2+ {[%clk 0:01:24]} 58.
Rxe2 {[%clk 0:00:30.1]} 58... dxe2 {[%clk 0:01:25.4]} 59. Bf2 {[%clk 0:00:27.2]}
59... Kxe5 {[%clk 0:01:25.9]} 60. Ke3 {[%clk 0:00:27.3]} 60... Kf5 {[%clk
0:01:22.6]} 61. Kf3 {[%clk 0:00:27.8]} 61... g4+ {[%clk 0:01:23.7]} 62. Ke3
{[%clk 0:00:28]} 62... g3 {[%clk 0:01:24.8]} 63. Be1 {[%clk 0:00:26.9]} 63...
Kg4 {[%clk 0:01:25.8]} 0-1

[Event "*** Titled Tuesday 3|2 Blitz"]
[Site "Chess.com"]
[Date "2015.11.03"]
[Round "9"]
[White "Sadovsky_Artem"]
[Black "Izoria123"]
[Result "1-0"]
[WhiteElo "2521"]
[BlackElo "2461"]
[TimeControl "180+2"]
[EndTime "18:53:11 PST"]
[Termination "Sadovsky_Artem won by resignation"]

1. e4 {[%clk 0:02:59.3]} 1... c5 {[%clk 0:02:59.3]} 2. Nf3 {[%clk 0:03:00.3]}
2... a6 {[%clk 0:03:00.4]} 3. c4 {[%clk 0:03:01.3]} 3... e6 {[%clk 0:03:00.9]}
4. Nc3 {[%clk 0:03:01.6]} 4... Qc7 {[%clk 0:03:02]} 5. Be2 {[%clk 0:03:02.5]}
5... Nf6 {[%clk 0:03:02.9]} 6. O-O {[%clk 0:03:03.2]} 6... Nc6 {[%clk
0:03:03.9]} 7. d4 {[%clk 0:03:01.1]} 7... cxd4 {[%clk 0:03:04.6]} 8. Nxd4 {[%clk
0:03:02.9]} 8... Bb4 {[%clk 0:03:01.5]} 9. Nxc6 {[%clk 0:03:00.3]} 9... dxc6
{[%clk 0:03:02.3]} 10. Be3 {[%clk 0:03:00.9]} 10... e5 {[%clk 0:02:56]} 11. Qc2
{[%clk 0:02:57.1]} 11... Ng4 {[%clk 0:02:41.2]} 12. Bxg4 {[%clk 0:02:50.3]}
12... Bxg4 {[%clk 0:02:42.4]} 13. Na4 {[%clk 0:02:51.1]} 13... Qe7 {[%clk
0:02:41.9]} 14. a3 {[%clk 0:02:47.4]} 14... Bd6 {[%clk 0:02:41.5]} 15. f3 {[%clk
0:02:46.4]} 15... Be6 {[%clk 0:02:41.8]} 16. Rfd1 {[%clk 0:02:45.8]} 16... O-O
{[%clk 0:02:39.6]} 17. Bb6 {[%clk 0:02:43.6]} 17... f5 {[%clk 0:02:24.6]} 18.
Qd2 {[%clk 0:02:31.9]} 18... Bc7 {[%clk 0:02:07]} 19. Bxc7 {[%clk 0:02:18.7]}
19... Qxc7 {[%clk 0:02:07.6]} 20. Qd6 {[%clk 0:02:20.3]} 20... Qf7 {[%clk
0:02:04.5]} 21. Nb6 {[%clk 0:02:12.4]} 21... Rae8 {[%clk 0:02:01.3]} 22. Qxe5
{[%clk 0:01:58]} 22... Bxc4 {[%clk 0:01:59.9]} 23. Qxf5 {[%clk 0:01:55.6]} 23...
Qxf5 {[%clk 0:01:47]} 24. exf5 {[%clk 0:01:57.3]} 24... Bb3 {[%clk 0:01:47.6]}
25. Re1 {[%clk 0:01:54]} 25... Rxe1+ {[%clk 0:01:43.9]} 26. Rxe1 {[%clk
0:01:55.7]} 26... Rxf5 {[%clk 0:01:44.9]} 27. Re7 {[%clk 0:01:53.4]} 27... Rb5
{[%clk 0:01:30.6]} 28. Rxb7 {[%clk 0:01:42.8]} 28... a5 {[%clk 0:01:20.2]} 29.
Rb8+ {[%clk 0:01:36.5]} 29... Kf7 {[%clk 0:01:20.5]} 30. Nd7 {[%clk 0:01:38.4]}
30... Rxb8 {[%clk 0:00:47.6]} 31. Nxb8 {[%clk 0:01:37.4]} 31... Ba4 {[%clk
0:00:41.5]} 32. Nd7 {[%clk 0:01:35.4]} 32... Ke7 {[%clk 0:00:36.7]} 33. Nc5
{[%clk 0:01:29.8]} 33... Bb5 {[%clk 0:00:36.2]} 34. Kf2 {[%clk 0:01:31.5]} 34...
Kd6 {[%clk 0:00:36.3]} 35. Nb7+ {[%clk 0:01:25.2]} 35... Kd5 {[%clk 0:00:32.6]}
36. Nxa5 {[%clk 0:01:26.9]} 36... Kd4 {[%clk 0:00:30.9]} 37. b3 {[%clk
0:01:25.5]} 37... c5 {[%clk 0:00:29.8]} 38. h4 {[%clk 0:00:59.3]} 38... Bd3
{[%clk 0:00:21.4]} 39. g4 {[%clk 0:00:45.2]} 39... h6 {[%clk 0:00:14.3]} 40.
Nc6+ {[%clk 0:00:32.3]} 40... Kc3 {[%clk 0:00:14.4]} 41. Ke3 {[%clk 0:00:28.9]}
41... Bc2 {[%clk 0:00:15]} 42. b4 {[%clk 0:00:26.2]} 42... c4 {[%clk 0:00:15.7]}
43. b5 {[%clk 0:00:23.4]} 43... Ba4 {[%clk 0:00:09.9]} 44. Nd4 {[%clk
0:00:24.2]} 44... Kb2 {[%clk 0:00:07.4]} 45. b6 {[%clk 0:00:24.7]} 45... Bc6
{[%clk 0:00:08.3]} 46. Nxc6 {[%clk 0:00:23.9]} 46... c3 {[%clk 0:00:09.6]} 47.
Nd4 {[%clk 0:00:25.6]} 1-0

[Event "*** Titled Tuesday 3|2 Blitz"]
[Site "Chess.com"]
[Date "2015.11.03"]
[Round "9"]
[White "Anton_Demchenko"]
[Black "LePlusMortel"]
[Result "1-0"]
[WhiteElo "2628"]
[BlackElo "2423"]
[TimeControl "180+2"]
[EndTime "18:53:11 PST"]
[Termination "Anton_Demchenko won on time"]

1. e4 {[%clk 0:03:01.9]} 1... c5 {[%clk 0:03:00.6]} 2. Nf3 {[%clk 0:03:02.9]}
2... d6 {[%clk 0:03:01.9]} 3. d4 {[%clk 0:03:03.6]} 3... cxd4 {[%clk 0:03:03.8]}
4. Nxd4 {[%clk 0:03:05.2]} 4... Nf6 {[%clk 0:03:05.1]} 5. Nc3 {[%clk 0:03:06.8]}
5... g6 {[%clk 0:03:06.7]} 6. Be3 {[%clk 0:03:07.1]} 6... Bg7 {[%clk 0:03:08.3]}
7. f3 {[%clk 0:03:08.5]} 7... O-O {[%clk 0:03:09.9]} 8. Qd2 {[%clk 0:03:09.9]}
8... Nc6 {[%clk 0:03:11.5]} 9. Bc4 {[%clk 0:03:11.4]} 9... Bd7 {[%clk
0:03:12.1]} 10. O-O-O {[%clk 0:03:12.8]} 10... Rc8 {[%clk 0:03:13.3]} 11. Be2
{[%clk 0:03:13.9]} 11... Nxd4 {[%clk 0:03:10.1]} 12. Bxd4 {[%clk 0:03:13.7]}
12... Be6 {[%clk 0:03:10.1]} 13. Kb1 {[%clk 0:03:13.1]} 13... Re8 {[%clk
0:03:08.5]} 14. g4 {[%clk 0:02:59.9]} 14... Qa5 {[%clk 0:03:08.9]} 15. a3 {[%clk
0:02:59.5]} 15... Rb8 {[%clk 0:03:05.9]} 16. h4 {[%clk 0:02:45.8]} 16... b5
{[%clk 0:03:06.6]} 17. Nd5 {[%clk 0:02:38.1]} 17... Qxd2 {[%clk 0:03:06.5]} 18.
Rxd2 {[%clk 0:02:38.2]} 18... Bxd5 {[%clk 0:03:05.2]} 19. exd5 {[%clk
0:02:38.8]} 19... a6 {[%clk 0:03:05.2]} 20. h5 {[%clk 0:02:36.5]} 20... Nd7
{[%clk 0:03:06.4]} 21. Bf2 {[%clk 0:02:32.9]} 21... a5 {[%clk 0:02:49.3]} 22. h6
{[%clk 0:02:31.6]} 22... Be5 {[%clk 0:02:46.3]} 23. Be3 {[%clk 0:02:32.7]} 23...
Nc5 {[%clk 0:02:36]} 24. f4 {[%clk 0:02:27.1]} 24... Bh8 {[%clk 0:02:36.6]} 25.
g5 {[%clk 0:01:55.6]} 25... b4 {[%clk 0:02:16.7]} 26. Bxc5 {[%clk 0:01:55.6]}
26... dxc5 {[%clk 0:02:18.6]} 27. a4 {[%clk 0:01:56.9]} 27... Red8 {[%clk
0:01:53.6]} 28. Bc4 {[%clk 0:01:42.7]} 28... Kf8 {[%clk 0:01:52]} 29. Re2 {[%clk
0:01:42.4]} 29... Rd6 {[%clk 0:01:43.9]} 30. Rhe1 {[%clk 0:01:41.3]} 30... Rb7
{[%clk 0:01:45.3]} 31. Kc1 {[%clk 0:01:37.5]} 31... Rbd7 {[%clk 0:01:34.4]} 32.
Kb1 {[%clk 0:01:25.2]} 32... Bd4 {[%clk 0:01:30.5]} 33. Ka2 {[%clk 0:01:22.9]}
33... Rc7 {[%clk 0:01:26.9]} 34. Kb3 {[%clk 0:01:23.5]} 34... Bh8 {[%clk
0:01:11.8]} 35. c3 {[%clk 0:01:19.5]} 35... Rb7 {[%clk 0:00:29]} 36. Kc2 {[%clk
0:01:19.6]} 36... Rc7 {[%clk 0:00:29.2]} 37. Re3 {[%clk 0:01:19.3]} 37... Rb7
{[%clk 0:00:30.3]} 38. R1e2 {[%clk 0:01:19.8]} 38... Rc7 {[%clk 0:00:31.5]} 39.
Rd2 {[%clk 0:01:15.6]} 39... Rb7 {[%clk 0:00:31.5]} 40. Rdd3 {[%clk 0:01:12.1]}
40... Rc7 {[%clk 0:00:32.3]} 41. Re2 {[%clk 0:01:13.4]} 41... Ke8 {[%clk
0:00:32.6]} 42. Kb3 {[%clk 0:01:10.5]} 42... Kf8 {[%clk 0:00:32.8]} 43. Bb5
{[%clk 0:01:05.7]} 43... e6 {[%clk 0:00:14.8]} 44. dxe6 {[%clk 0:00:41.5]} 44...
Rxd3 {[%clk 0:00:07.1]} 45. Bxd3 {[%clk 0:00:43.4]} 45... Re7 {[%clk 0:00:02]}
46. Bc4 {[%clk 0:00:37.1]} 46... fxe6 {[%clk 0:00:02]} 47. Bxe6 {[%clk 0:00:39]}
1-0

[Event "*** Titled Tuesday 3|2 Blitz"]
[Site "Chess.com"]
[Date "2015.11.03"]
[Round "9"]
[White "bugsbunny444"]
[Black "Aygehovit1992"]
[Result "1-0"]
[WhiteElo "2362"]
[BlackElo "2454"]
[TimeControl "180+2"]
[EndTime "18:53:51 PST"]
[Termination "bugsbunny444 won by resignation"]

1. Nf3 {[%clk 0:03:01.9]} 1... g6 {[%clk 0:03:00.1]} 2. e4 {[%clk 0:03:02.7]}
2... Bg7 {[%clk 0:03:01.5]} 3. d4 {[%clk 0:03:04.4]} 3... d6 {[%clk 0:03:02]} 4.
Nc3 {[%clk 0:03:06]} 4... a6 {[%clk 0:03:03.3]} 5. a4 {[%clk 0:03:06.3]} 5... b6
{[%clk 0:03:04.4]} 6. Bc4 {[%clk 0:03:06.6]} 6... e6 {[%clk 0:03:04.6]} 7. O-O
{[%clk 0:03:06.4]} 7... Bb7 {[%clk 0:03:05.9]} 8. h3 {[%clk 0:03:05.6]} 8... Ne7
{[%clk 0:03:07]} 9. Be3 {[%clk 0:03:05]} 9... Nd7 {[%clk 0:03:07.8]} 10. Qd2
{[%clk 0:03:05.9]} 10... d5 {[%clk 0:03:07.5]} 11. exd5 {[%clk 0:03:00.6]} 11...
exd5 {[%clk 0:03:08.6]} 12. Bd3 {[%clk 0:02:57.6]} 12... O-O {[%clk 0:03:09.3]}
13. Bh6 {[%clk 0:02:50.4]} 13... c5 {[%clk 0:03:10.3]} 14. Rfe1 {[%clk
0:02:46.3]} 14... c4 {[%clk 0:02:59.4]} 15. Bxg7 {[%clk 0:02:39]} 15... Kxg7
{[%clk 0:03:00.3]} 16. Bf1 {[%clk 0:02:40]} 16... Nf5 {[%clk 0:03:01.3]} 17. Qf4
{[%clk 0:02:21.7]} 17... Rc8 {[%clk 0:02:49.4]} 18. Re2 {[%clk 0:01:56]} 18...
Qf6 {[%clk 0:02:48.8]} 19. Rae1 {[%clk 0:01:49.9]} 19... Bc6 {[%clk 0:02:45]}
20. g4 {[%clk 0:01:33]} 20... Nd6 {[%clk 0:02:21.5]} 21. Qxf6+ {[%clk
0:01:33.3]} 21... Nxf6 {[%clk 0:02:22.5]} 22. Ne5 {[%clk 0:01:29.7]} 22... Nfe4
{[%clk 0:02:13]} 23. Nxc6 {[%clk 0:01:13.8]} 23... Rxc6 {[%clk 0:02:13.4]} 24.
Nxd5 {[%clk 0:01:10.6]} 24... c3 {[%clk 0:02:10.5]} 25. b3 {[%clk 0:01:02.3]}
25... f5 {[%clk 0:02:09.1]} 26. Bg2 {[%clk 0:00:55.8]} 26... b5 {[%clk
0:02:05.3]} 27. Nb4 {[%clk 0:00:20.1]} 27... Rb6 {[%clk 0:02:04.2]} 28. a5
{[%clk 0:00:20.9]} 28... Rbb8 {[%clk 0:02:05.2]} 29. Nxa6 {[%clk 0:00:21.8]}
29... Ra8 {[%clk 0:02:06.5]} 30. Nc5 {[%clk 0:00:21.5]} 30... Rxa5 {[%clk
0:02:07]} 31. Ne6+ {[%clk 0:00:22]} 31... Kf7 {[%clk 0:02:05.8]} 32. Nxf8 {[%clk
0:00:23.3]} 32... Kxf8 {[%clk 0:02:07.4]} 33. Bxe4 {[%clk 0:00:22.3]} 33... fxe4
{[%clk 0:02:08.3]} 34. f3 {[%clk 0:00:13.4]} 34... exf3 {[%clk 0:02:09.6]} 35.
Rf1 {[%clk 0:00:08.8]} 35... b4 {[%clk 0:02:08.1]} 36. Rxf3+ {[%clk 0:00:09.7]}
36... Kg7 {[%clk 0:02:08.9]} 37. h4 {[%clk 0:00:07.1]} 37... Rd5 {[%clk
0:02:02.9]} 38. Rf4 {[%clk 0:00:04.9]} 38... Nb5 {[%clk 0:02:01.1]} 39. Re5
{[%clk 0:00:04.9]} 39... Rxd4 {[%clk 0:01:59.1]} 40. Rxd4 {[%clk 0:00:05.4]}
40... Nxd4 {[%clk 0:01:59.8]} 41. Kf2 {[%clk 0:00:03.6]} 41... Nxc2 {[%clk
0:02:00.9]} 42. Rb5 {[%clk 0:00:03.8]} 42... Kf6 {[%clk 0:01:58.9]} 43. g5+
{[%clk 0:00:03.8]} 43... Ke6 {[%clk 0:01:59.6]} 44. Rb8 {[%clk 0:00:03.6]} 44...
Kd5 {[%clk 0:01:54.2]} 45. Ke2 {[%clk 0:00:04.7]} 45... Nd4+ {[%clk 0:01:32.5]}
46. Kd3 {[%clk 0:00:03.6]} 46... c2 {[%clk 0:01:30.9]} 47. Kd2 {[%clk
0:00:03.7]} 47... Nxb3+ {[%clk 0:01:22.8]} 48. Kxc2 {[%clk 0:00:04.9]} 48...
Nd4+ {[%clk 0:01:24.5]} 49. Kd3 {[%clk 0:00:06.3]} 49... Nf3 {[%clk 0:01:24.9]}
50. Rxb4 {[%clk 0:00:06]} 50... Ke6 {[%clk 0:01:22.2]} 51. Ke3 {[%clk
0:00:06.4]} 51... Ne5 {[%clk 0:01:22.8]} 52. Ra4 {[%clk 0:00:07.2]} 52... Kf5
{[%clk 0:01:24]} 53. Rf4+ {[%clk 0:00:06.5]} 53... Ke6 {[%clk 0:01:25.3]} 54.
Rf6+ {[%clk 0:00:07.2]} 54... Ke7 {[%clk 0:01:26.5]} 55. Kf4 {[%clk 0:00:07.8]}
55... Nd3+ {[%clk 0:01:26.1]} 56. Kg3 {[%clk 0:00:08.6]} 56... Ne5 {[%clk
0:01:26.9]} 57. Rf1 {[%clk 0:00:08.9]} 57... Ke6 {[%clk 0:01:27.8]} 58. Rf6+
{[%clk 0:00:06.8]} 58... Ke7 {[%clk 0:01:29]} 59. Ra6 {[%clk 0:00:08.5]} 59...
Nf7 {[%clk 0:01:28.8]} 60. Kf4 {[%clk 0:00:09]} 60... Nd6 {[%clk 0:01:29.7]} 61.
Ra7+ {[%clk 0:00:09.6]} 61... Ke6 {[%clk 0:01:28.5]} 62. Rxh7 {[%clk 0:00:10.5]}
62... Nf5 {[%clk 0:01:30.4]} 63. h5 {[%clk 0:00:05.4]} 63... Nh4 {[%clk
0:01:28.1]} 64. h6 {[%clk 0:00:04.5]} 64... Ng2+ {[%clk 0:01:27.9]} 65. Kg3
{[%clk 0:00:05.2]} 65... Ne3 {[%clk 0:01:29.1]} 66. Ra7 {[%clk 0:00:05.4]} 66...
Nf5+ {[%clk 0:01:30.3]} 67. Kf4 {[%clk 0:00:05.9]} 67... Nd6 {[%clk 0:01:30.6]}
68. Ra6 {[%clk 0:00:06.5]} 1-0

[Event "*** Titled Tuesday 3|2 Blitz"]
[Site "Chess.com"]
[Date "2015.11.03"]
[Round "9"]
[White "Tirantes"]
[Black "Shivagami"]
[Result "1-0"]
[WhiteElo "2234"]
[BlackElo "1795"]
[TimeControl "180+2"]
[EndTime "18:53:51 PST"]
[Termination "Tirantes won by resignation"]

1. c4 {[%clk 0:03:01.9]} 1... Nc6 {[%clk 0:02:56.5]} 2. g3 {[%clk 0:02:58.1]}
2... e5 {[%clk 0:02:55.3]} 3. Bg2 {[%clk 0:02:58]} 3... Nge7 {[%clk 0:02:49.7]}
4. Nc3 {[%clk 0:02:57.2]} 4... g6 {[%clk 0:02:50.2]} 5. e4 {[%clk 0:02:54.2]}
5... Bg7 {[%clk 0:02:50.4]} 6. Nge2 {[%clk 0:02:54.8]} 6... d6 {[%clk
0:02:51.2]} 7. d3 {[%clk 0:02:54.8]} 7... Bg4 {[%clk 0:02:48.8]} 8. h3 {[%clk
0:02:46.7]} 8... Be6 {[%clk 0:02:48.3]} 9. Nd5 {[%clk 0:02:41.8]} 9... Qd7
{[%clk 0:02:44.1]} 10. Bg5 {[%clk 0:02:41.4]} 10... O-O-O {[%clk 0:02:39]} 11.
Qa4 {[%clk 0:02:29.7]} 11... Kb8 {[%clk 0:02:26.1]} 12. Be3 {[%clk 0:02:06.8]}
12... Bxd5 {[%clk 0:02:08.1]} 13. cxd5 {[%clk 0:01:57.4]} 13... Nd4 {[%clk
0:02:08.6]} 14. Qxd7 {[%clk 0:01:53.2]} 14... Rxd7 {[%clk 0:02:06.4]} 15. Rc1
{[%clk 0:01:48.6]} 15... Nxe2 {[%clk 0:02:05.2]} 16. Kxe2 {[%clk 0:01:48.6]}
16... f5 {[%clk 0:02:06.5]} 17. h4 {[%clk 0:01:44.9]} 17... Rf8 {[%clk
0:02:03.3]} 18. h5 {[%clk 0:01:36.5]} 18... f4 {[%clk 0:02:02.2]} 19. Bd2 {[%clk
0:01:35.7]} 19... g5 {[%clk 0:02:01.4]} 20. h6 {[%clk 0:01:28.9]} 20... Bf6
{[%clk 0:01:57.6]} 21. Bh3 {[%clk 0:01:28.4]} 21... Rdd8 {[%clk 0:01:57.3]} 22.
Be6 {[%clk 0:01:21.9]} 22... c6 {[%clk 0:01:52.7]} 23. dxc6 {[%clk 0:01:18]}
23... Nxc6 {[%clk 0:01:50.6]} 24. Bc3 {[%clk 0:01:14.7]} 24... Rde8 {[%clk
0:01:40.5]} 25. Bd7 {[%clk 0:01:11.2]} 25... Kc7 {[%clk 0:01:39.7]} 26. Bxe8
{[%clk 0:01:11]} 26... Rxe8 {[%clk 0:01:41.1]} 27. gxf4 {[%clk 0:01:10.4]} 27...
gxf4 {[%clk 0:01:40.8]} 28. Rhg1 {[%clk 0:01:10.1]} 28... Rf8 {[%clk 0:01:39.3]}
29. Kf3 {[%clk 0:01:08.9]} 29... Ne7 {[%clk 0:01:37.6]} 30. Rg4 {[%clk
0:01:03.7]} 30... Ng6 {[%clk 0:01:29.3]} 31. Rcg1 {[%clk 0:01:01.8]} 31... Rg8
{[%clk 0:01:22.1]} 32. Ke2 {[%clk 0:00:46.6]} 32... b5 {[%clk 0:01:10.4]} 33. a3
{[%clk 0:00:41.5]} 33... Kd7 {[%clk 0:01:10.1]} 34. a4 {[%clk 0:00:38.3]} 34...
a6 {[%clk 0:01:10.5]} 35. axb5 {[%clk 0:00:38.1]} 35... axb5 {[%clk 0:01:11.6]}
36. Ra1 {[%clk 0:00:38.1]} 36... Kc6 {[%clk 0:01:00.2]} 37. Ra7 {[%clk
0:00:37.8]} 37... Be7 {[%clk 0:00:52.4]} 38. Rxg6 {[%clk 0:00:36.7]} 38... Rxg6
{[%clk 0:00:52.2]} 39. Rxe7 {[%clk 0:00:37.2]} 39... Rxh6 {[%clk 0:00:53.7]} 40.
Bb4 {[%clk 0:00:36.6]} 40... Rh1 {[%clk 0:00:50]} 41. Re6 {[%clk 0:00:36.7]}
41... h5 {[%clk 0:00:48.8]} 42. Rxd6+ {[%clk 0:00:36.8]} 42... Kc7 {[%clk
0:00:46.6]} 43. Re6 {[%clk 0:00:37.5]} 43... h4 {[%clk 0:00:46.5]} 44. Rxe5
{[%clk 0:00:38.4]} 44... h3 {[%clk 0:00:47.9]} 45. Rh5 {[%clk 0:00:39]} 45... h2
{[%clk 0:00:49.2]} 46. Kf3 {[%clk 0:00:39.1]} 46... Rb1 {[%clk 0:00:46.4]} 47.
Rxh2 {[%clk 0:00:38.8]} 47... Rxb2 {[%clk 0:00:47.5]} 48. Bc5 {[%clk 0:00:39.5]}
48... b4 {[%clk 0:00:47.6]} 49. Kxf4 {[%clk 0:00:38.5]} 49... b3 {[%clk
0:00:47.7]} 50. Rh1 {[%clk 0:00:35.2]} 50... Rc2 {[%clk 0:00:47.4]} 51. Bd4
{[%clk 0:00:34.6]} 51... Rd2 {[%clk 0:00:47.9]} 52. Ke3 {[%clk 0:00:34.5]} 52...
Ra2 {[%clk 0:00:47.3]} 53. Rb1 {[%clk 0:00:34.6]} 53... Ra3 {[%clk 0:00:47.6]}
54. Rb2 {[%clk 0:00:34.4]} 54... Kd6 {[%clk 0:00:46.8]} 55. f4 {[%clk
0:00:34.2]} 55... Ke6 {[%clk 0:00:47.2]} 56. f5+ {[%clk 0:00:35]} 56... Kd6
{[%clk 0:00:46.8]} 57. Bc3 {[%clk 0:00:32.2]} 57... Kc5 {[%clk 0:00:45.4]} 58.
f6 {[%clk 0:00:32]} 58... Ra6 {[%clk 0:00:44.9]} 59. f7 {[%clk 0:00:31.8]} 59...
Ra8 {[%clk 0:00:43.5]} 60. Rxb3 {[%clk 0:00:32.3]} 60... Rf8 {[%clk 0:00:43.1]}
61. Bb4+ {[%clk 0:00:33]} 1-0